bitfinex/quotes_SOLUSD_20240620
["timestamp","ask_amount","ask_price","bid_price","bid_amount"]
[1718910109161,0.34,134.35,134.29,35.4163]
[1718910109666,0.34,134.35,134.29,27.97]
[1718910110643,0.34,134.35,134.29,35.4162]
[1718910111377,0.17,134.34,134.29,35.4162]
[1718910111842,0.17,134.34,134.29,27.97]
[1718910112263,6.3424,134.33,134.29,27.97]
[1718910113269,16.0582,134.32,134.26,7.4479]
[1718910113443,16.2282,134.32,134.27,27.4476]
[1718910113643,16.0582,134.32,134.27,27.4476]
[1718910114659,16.0582,134.32,134.27,20.0]
[1718910118365,16.0582,134.32,134.27,7.4476]
[1718910118566,16.0582,134.32,134.26,7.4478]
[1718910118973,16.0582,134.32,134.27,7.4476]
[1718910119467,16.0582,134.32,134.3,9.33]
[1718910121576,16.0582,134.32,134.22,16.5582]
[1718910121789,16.0582,134.32,134.28,9.33]
[1718910122082,0.51,134.31,134.28,9.33]
[1718910123879,6.3204,134.3,134.23,20.0]
[1718910124184,6.3204,134.3,134.18,15.4219]
[1718910124185,15.5901,134.29,134.18,15.4219]
[1718910124383,54.5,134.28,134.21,7.4509]
[1718910124568,0.17,134.27,134.23,9.33]
[1718910124880,0.34,134.27,134.23,9.33]
[1718910125393,0.17,134.26,134.23,9.33]
[1718910126586,0.17,134.26,134.2,7.4512]
[1718910126883,0.17,134.26,134.23,9.33]
[1718910129005,0.17,134.26,134.2,7.4513]
[1718910129199,6.3465,134.25,134.18,7.4524]
[1718910129363,0.17,134.24,134.18,7.4526]
[1718910129558,0.51,134.24,134.21,9.33]
[1718910130264,16.5472,134.23,134.15,15.9599]
[1718910130468,0.17,134.22,134.16,27.4533]
[1718910130668,0.17,134.22,134.19,9.33]
[1718910131072,0.17,134.22,134.17,7.453]
[1718910131271,16.5472,134.23,134.2,9.33]
[1718910132171,16.5472,134.23,134.19,7.452]
[1718910132491,6.3465,134.25,134.22,9.33]
[1718910132667,6.3465,134.25,134.23,9.33]
[1718910133289,6.3465,134.25,134.22,9.33]
[1718910133502,6.3465,134.25,134.19,7.452]
[1718910134772,6.3465,134.25,134.18,35.4825]
[1718910134974,0.17,134.24,134.18,35.4825]
[1718910135181,0.34,134.24,134.18,35.4825]
[1718910135387,0.34,134.24,134.15,28.03]
[1718910135586,45.34,134.24,134.16,20.0]
[1718910135895,15.5608,134.22,134.16,20.0]
[1718910136069,15.5608,134.22,134.16,27.4537]
[1718910138271,0.51,134.21,134.16,27.4537]
[1718910138786,0.17,134.21,134.16,27.4537]
[1718910138967,15.5608,134.22,134.16,27.4537]
[1718910139173,15.5608,134.22,134.16,20.0]
[1718910139486,0.51,134.21,134.15,28.03]
[1718910140171,0.51,134.21,134.13,28.03]
[1718910140363,6.4423,134.2,134.14,27.4546]
[1718910140789,0.51,134.19,134.14,27.4546]
[1718910142985,6.4423,134.2,134.15,7.454]
[1718910143387,0.17,134.19,134.14,27.4545]
[1718910143570,6.4423,134.2,134.15,7.4542]
[1718910143770,6.4423,134.2,134.14,27.4546]
[1718910144011,0.17,134.19,134.15,7.4542]
[1718910144187,0.34,134.19,134.15,7.4542]
[1718910144378,6.4423,134.2,134.15,7.4542]
[1718910146268,6.4423,134.2,134.14,27.4545]
[1718910147181,6.4423,134.2,134.15,7.4542]
[1718910149699,6.4423,134.2,134.14,27.4545]
[1718910150272,6.4423,134.2,134.14,20.0]
[1718910150485,0.17,134.19,134.14,7.4548]
[1718910150793,0.51,134.19,134.14,7.4548]
[1718910152303,0.51,134.19,134.13,7.4551]
[1718910153378,0.51,134.19,134.16,9.35]
[1718910154593,0.17,134.19,134.16,9.35]
[1718910154785,6.4423,134.2,134.17,9.35]
[1718910155272,6.4423,134.2,134.18,9.35]
[1718910155475,6.4423,134.2,134.19,9.35]
[1718910157297,6.4423,134.2,134.15,7.4542]
[1718910157493,6.4423,134.2,134.19,9.35]
[1718910159019,6.4423,134.2,134.18,9.35]
[1718910159598,6.4423,134.2,134.19,9.35]
[1718910164877,6.4423,134.2,134.18,9.35]
[1718910168703,6.4423,134.2,134.17,9.35]
[1718910169086,6.4423,134.2,134.14,7.4547]
[1718910169293,6.4423,134.2,134.12,0.8304103]
[1718910169489,0.34,134.19,134.12,45.6861103]
[1718910169795,0.34,134.19,134.12,8.2861103]
[1718910169995,0.34,134.19,134.15,9.35]
[1718910170184,0.34,134.19,134.12,0.8304103]
[1718910170500,15.1284,134.18,134.12,0.8304103]
[1718910170702,9.52,134.17,134.12,10.1804103]
[1718910170886,0.34,134.16,134.12,0.8304103]
[1718910171081,0.34,134.16,134.13,9.35]
[1718910171483,24.4784,134.18,134.13,9.35]
[1718910171697,15.1284,134.18,134.16,9.35]
[1718910172086,15.1284,134.18,134.12,10.1804103]
[1718910172391,15.1284,134.18,134.14,9.35]
[1718910172909,30.0,134.16,134.14,9.35]
[1718910175090,30.0,134.16,134.12,0.8304103]
[1718910175292,30.0,134.16,134.14,9.35]
[1718910175504,30.0,134.16,134.12,0.8304103]
[1718910175826,30.0,134.14,134.12,10.1804103]
[1718910176799,30.0,134.14,134.12,0.8304103]
[1718910176997,30.0,134.14,134.12,10.1804103]
[1718910178812,30.0,134.14,134.12,0.8304103]
[1718910178813,0.17,134.13,134.12,0.8304103]
[1718910179116,30.51,134.13,134.12,0.8304103]
[1718910180216,30.51,134.13,134.11,9.35]
[1718910180217,29.1695897,134.12,134.11,9.35]
[1718910180715,29.1695897,134.12,134.09,0.6546172]
[1718910180928,29.1695897,134.12,134.1,9.35]
[1718910181102,29.1695897,134.12,134.11,9.35]
[1718910181295,29.1695897,134.12,134.09,0.6546172]
[1718910181492,29.1695897,134.12,134.11,9.35]
[1718910182030,29.1695897,134.12,134.11,26.1565]
[1718910182591,29.1695897,134.12,134.11,16.8065]
[1718910182894,29.1695897,134.12,134.11,9.35]
[1718910183497,29.1695897,134.12,134.09,8.1121172]
[1718910183706,29.1695897,134.12,134.11,9.35]
[1718910183908,29.1695897,134.12,134.09,0.6546172]
[1718910184106,29.1695897,134.12,134.1,9.35]
[1718910184409,29.1695897,134.12,134.09,0.6546172]
[1718910184721,29.1695897,134.12,134.1,9.35]
[1718910185097,29.1695897,134.12,134.09,0.6546172]
[1718910185393,15.6552,134.11,134.09,0.6546172]
[1718910185606,30.34,134.1,134.09,0.6546172]
[1718910186119,39.86,134.1,134.09,0.6546172]
[1718910186316,30.51,134.1,134.09,0.6546172]
[1718910186896,30.34,134.1,134.09,0.6546172]
[1718910187097,30.51,134.1,134.09,0.6546172]
[1718910187608,30.34,134.1,134.09,0.6546172]
[1718910187797,75.51,134.1,134.09,0.6546172]
[1718910187998,100.8153,134.1,134.09,0.6546172]
[1718910188701,145.6153,134.1,134.06,0.9200363]
[1718910188910,45.17,134.09,134.06,0.9200363]
[1718910189213,30.0,134.07,134.06,0.9200363]
[1718910190026,22.8303,134.06,134.03,0.1956256]
[1718910190197,30.0,134.04,134.03,0.1956256]
[1718910190514,30.34,134.04,134.03,0.1956256]
[1718910190723,30.51,134.04,134.03,0.1956256]
[1718910191617,30.0,134.04,134.03,9.5456256]
[1718910192119,30.17,134.04,134.03,0.1956256]
[1718910192436,30.0,134.04,134.03,9.5456256]
[1718910192601,30.0,134.04,134.03,0.1956256]
[1718910192912,30.51,134.04,134.03,0.1956256]
[1718910193305,30.0,134.04,134.03,0.1956256]
[1718910193502,30.17,134.04,134.03,0.1956256]
[1718910193703,30.0,134.04,134.03,0.1956256]
[1718910194424,30.0,134.04,134.03,17.0066256]
[1718910194900,30.0,134.04,134.03,46.3566256]
[1718910195301,6.0533,134.13,134.04,7.4601]
[1718910195513,6.0533,134.13,134.09,9.35]
[1718910197233,6.0533,134.13,134.05,37.4]
[1718910197446,30.0,134.1,134.05,15.8577]
[1718910197726,30.0,134.1,134.09,7.4576]
[1718910197926,6.577,134.17,134.09,27.4576]
[1718910198114,6.577,134.17,134.09,20.0]
[1718910198624,6.577,134.17,134.09,7.4573]
[1718910198828,6.577,134.17,134.08,20.0]
[1718910199129,6.577,134.17,134.09,7.4574]
[1718910199323,6.577,134.17,134.1,7.4569]
[1718910199807,6.577,134.17,134.09,7.4574]
[1718910200608,0.17,134.16,134.09,7.4574]
[1718910200804,0.17,134.16,134.08,20.0]
[1718910200805,0.51,134.16,134.08,20.0]
[1718910201011,45.51,134.16,134.05,57.5563]
[1718910201317,45.51,134.16,134.06,27.4593]
[1718910201829,45.51,134.16,134.07,7.4587]
[1718910202235,45.51,134.16,134.06,27.4591]
[1718910202413,90.31,134.16,134.06,20.0]
[1718910202727,1.72157564,134.15,134.06,20.0]
[1718910202919,0.17,134.14,134.06,20.0]
[1718910203124,0.51,134.14,134.06,20.0]
[1718910203427,30.0,134.1,134.06,20.0]
[1718910203609,30.0,134.1,134.08,7.458]
[1718910203810,30.0,134.1,134.07,7.4586]
[1718910204006,30.0,134.1,134.06,27.4591]
[1718910204213,0.51,134.14,134.06,27.4593]
[1718910204427,0.51,134.14,134.07,7.4586]
[1718910204607,1.72157564,134.15,134.11,7.4562]
[1718910204811,30.0,134.12,134.1,7.4569]
[1718910205343,30.0,134.12,134.09,35.5474]
[1718910206042,30.0,134.12,134.1,7.457]
[1718910206715,6.577,134.17,134.1,7.457]
[1718910207031,0.34,134.16,134.1,7.457]
[1718910207418,6.577,134.17,134.11,20.0]
[1718910208221,6.577,134.17,134.11,27.4565]
[1718910208417,6.577,134.17,134.11,20.0]
[1718910208619,6.577,134.17,134.11,7.4563]
[1718910208907,6.577,134.17,134.12,7.4558]
[1718910209107,44.8,134.22,134.11,15.2238]
[1718910209108,6.0689,134.21,134.11,15.2238]
[1718910209308,6.0689,134.21,134.15,7.454]
[1718910209525,30.0,134.16,134.15,7.454]
[1718910209724,30.0,134.16,134.14,7.4546]
[1718910209926,30.0,134.16,134.15,7.4543]
[1718910210127,6.0689,134.21,134.14,7.4546]
[1718910210314,6.0689,134.21,134.15,7.4543]
[1718910210732,6.0689,134.21,134.16,7.4535]
[1718910211025,6.0139,134.25,134.18,7.4523]
[1718910211329,6.0139,134.25,134.15,28.09]
[1718910211514,6.0139,134.25,134.12,50.47]
[1718910211718,6.0139,134.25,134.16,7.4537]
[1718910211909,6.0139,134.25,134.15,7.4541]
[1718910212234,6.0139,134.25,134.15,35.5441]
[1718910212409,6.0139,134.25,134.16,7.4536]
[1718910212611,0.34,134.24,134.16,7.4536]
[1718910212816,0.17,134.23,134.15,28.09]
[1718910213929,0.17,134.23,134.15,35.5442]
[1718910214628,0.17,134.23,134.15,7.4542]
[1718910217832,0.17,134.23,134.15,7.4541]
[1718910222826,6.2704,134.24,134.14,28.09]
[1718910223027,30.0,134.18,134.12,28.09]
[1718910223239,30.0,134.18,134.13,27.4552]
[1718910223477,30.0,134.18,134.16,7.4534]
[1718910224430,6.2704,134.24,134.18,7.4524]
[1718910225049,6.2704,134.24,134.17,7.4529]
[1718910226426,6.2704,134.24,134.15,28.09]
[1718910226646,0.34,134.23,134.16,27.4537]
[1718910226845,6.2704,134.24,134.17,7.4531]
[1718910229040,6.2704,134.24,134.16,27.4535]
[1718910230132,6.2704,134.24,134.18,7.4523]
[1718910230469,6.2704,134.24,134.18,35.5423]
[1718910230787,6.2704,134.24,134.18,28.09]
[1718910231586,6.2704,134.24,134.18,35.5423]
[1718910231733,6.2704,134.24,134.19,7.452]
[1718910232366,6.2704,134.24,134.18,35.5424]
[1718910232932,6.119,134.27,134.21,7.4507]
[1718910233161,6.119,134.27,134.21,28.09]
[1718910233532,6.119,134.27,134.21,35.5409]
[1718910236237,6.119,134.27,134.21,28.09]
[1718910236556,0.17,134.26,134.19,27.4519]
[1718910237087,0.51,134.26,134.19,20.0]
[1718910238465,0.51,134.26,134.17,35.5431]
[1718910238656,0.51,134.26,134.17,28.09]
[1718910238865,0.51,134.26,134.18,7.4522]
[1718910239265,0.51,134.26,134.19,7.452]
[1718910239772,0.51,134.26,134.18,7.4523]
[1718910240147,0.51,134.26,134.17,35.543]
[1718910240348,15.7282,134.25,134.15,7.4541]
[1718910240548,30.0,134.21,134.16,20.0]
[1718910240758,30.0,134.21,134.16,27.4536]
[1718910240961,30.0,134.21,134.18,7.4523]
[1718910241177,30.0,134.21,134.17,35.5429]
[1718910241359,30.0,134.21,134.17,28.09]
[1718910241559,30.0,134.21,134.16,27.4534]
[1718910242252,36.6651,134.21,134.14,35.5446]
[1718910242985,36.6651,134.21,134.15,7.4542]
[1718910245082,36.6651,134.21,134.12,15.0966]
[1718910245083,16.6439,134.2,134.08,281.1341]
[1718910245290,30.0,134.18,134.1,7.4569]
[1718910245473,0.34,134.17,134.09,35.5474]
[1718910245767,16.6439,134.15,134.03,274.9196256]
[1718910245949,16.6439,134.15,134.07,7.4587]
[1718910246151,0.51,134.14,134.07,7.4587]
[1718910246370,30.0,134.13,134.07,7.4587]
[1718910246551,30.0,134.13,134.08,7.4582]
[1718910246750,30.0,134.13,134.07,7.4585]
[1718910246970,30.0,134.13,134.09,7.4572]
[1718910247176,30.0,134.13,134.1,7.4571]
[1718910247469,30.0,134.13,134.1,7.4568]
[1718910247669,30.0,134.13,134.08,35.5481]
[1718910247857,30.0,134.13,134.09,20.0]
[1718910248065,30.0,134.13,134.1,7.4569]
[1718910248253,30.0,134.13,134.09,27.4575]
[1718910248573,30.0,134.13,134.1,7.4569]
[1718910249151,30.0,134.13,134.12,7.456]
[1718910249875,30.0,134.13,134.11,28.09]
[1718910250495,30.0,134.13,134.09,27.4575]
[1718910250783,36.5637,134.13,134.05,7.4595]
[1718910251082,36.5637,134.13,134.06,20.0]
[1718910251585,36.5637,134.13,134.07,7.4586]
[1718910252281,36.5637,134.13,134.09,7.4575]
[1718910252574,36.5637,134.13,134.07,35.5485]
[1718910253161,36.5637,134.13,134.07,28.09]
[1718910255283,36.5637,134.13,134.07,35.5485]
[1718910257478,36.5637,134.13,134.08,7.4582]
[1718910258158,36.5637,134.13,134.07,28.09]
[1718910258159,15.116,134.12,134.07,28.09]
[1718910258359,30.0,134.11,134.07,28.09]
[1718910258572,30.0,134.11,134.07,35.5485]
[1718910259779,30.0,134.11,134.07,28.09]
[1718910260591,30.0,134.11,134.06,20.0]
[1718910260765,30.0,134.11,134.04,28.09]
[1718910260766,30.0,134.11,134.05,20.0]
[1718910261164,30.0,134.11,134.03,7.6563256]
[1718910261395,6.6396,134.09,134.03,0.1956256]
[1718910261557,30.0,134.08,134.03,0.1956256]
[1718910261763,30.17,134.08,134.03,7.6564256]
[1718910261958,30.17,134.08,134.03,0.1956256]
[1718910262211,30.17,134.08,134.05,7.4597]
[1718910262212,30.0,134.08,134.05,7.4597]
[1718910262483,30.0,134.08,134.04,7.4602]
[1718910263062,30.0,134.08,134.03,35.7464256]
[1718910263467,30.0,134.08,134.04,7.4604]
[1718910263987,30.0,134.08,134.03,35.7463256]
[1718910264392,30.0,134.08,134.04,7.4604]
[1718910265588,30.0,134.08,134.03,28.2856256]
[1718910265589,30.0,134.08,134.07,7.4587]
[1718910265790,21.2618,134.12,134.07,7.4587]
[1718910266085,21.2618,134.12,134.06,35.5491]
[1718910267177,6.3975,134.15,134.06,28.09]
[1718910267366,6.3975,134.15,134.1,7.4568]
[1718910268094,6.3975,134.15,134.12,7.4557]
[1718910268677,15.1947,134.16,134.12,7.4557]
[1718910268885,6.1314,134.18,134.12,7.4557]
[1718910269560,6.1314,134.18,134.13,7.4554]
[1718910269768,16.3498,134.2,134.12,28.09]
[1718910269987,16.3498,134.2,134.14,7.4547]
[1718910270196,16.3498,134.2,134.13,7.4553]
[1718910270370,16.3498,134.2,134.14,27.4548]
[1718910270696,6.6254,134.21,134.16,7.4533]
[1718910270872,6.6254,134.21,134.15,28.09]
[1718910271768,16.4266,134.24,134.15,28.09]
[1718910271967,16.4266,134.24,134.17,7.4532]
[1718910272473,16.4266,134.24,134.19,7.4516]
[1718910273078,16.4266,134.24,134.19,7.4519]
[1718910273292,6.6254,134.25,134.2,7.4512]
[1718910273700,6.6254,134.25,134.19,7.452]
[1718910273969,6.6254,134.25,134.18,28.09]
[1718910274493,0.17,134.24,134.18,35.5425]
[1718910274992,0.17,134.24,134.18,28.09]
[1718910275400,0.51,134.24,134.14,20.0]
[1718910275601,0.51,134.24,134.13,20.0]
[1718910275809,0.51,134.24,134.17,7.4529]
[1718910276308,0.51,134.24,134.18,7.4525]
[1718910276603,0.34,134.24,134.16,28.09]
[1718910276805,0.17,134.24,134.17,27.4531]
[1718910277598,6.6254,134.25,134.17,20.0]
[1718910277803,0.34,134.24,134.17,27.4529]
[1718910278100,0.34,134.24,134.17,20.0]
[1718910278596,6.6254,134.25,134.18,7.4521]
[1718910279001,6.6254,134.25,134.2,7.4513]
[1718910279192,6.6254,134.25,134.19,7.4519]
[1718910279694,6.6254,134.25,134.2,7.4514]
[1718910280183,6.6254,134.25,134.22,7.4501]
[1718910280780,6.6254,134.25,134.21,7.4507]
[1718910281187,6.6254,134.25,134.2,7.4514]
[1718910281386,6.6254,134.25,134.21,20.0]
[1718910281586,6.6254,134.25,134.21,27.4509]
[1718910282193,6.6254,134.25,134.21,20.0]
[1718910283211,6.6254,134.25,134.19,35.5418]
[1718910284484,6.6254,134.25,134.2,7.4514]
[1718910284886,6.6254,134.25,134.19,28.09]
[1718910285097,6.6254,134.25,134.22,7.45]
[1718910285285,15.6211,134.27,134.23,7.4498]
[1718910285487,15.6211,134.27,134.23,20.0]
[1718910287208,15.6211,134.27,134.23,27.4498]
[1718910287504,0.17,134.26,134.19,28.09]
[1718910287714,0.34,134.26,134.19,7.4518]
[1718910287913,0.34,134.26,134.2,20.0]
[1718910288288,0.34,134.26,134.21,7.4508]
[1718910288508,0.34,134.26,134.2,7.4513]
[1718910288688,0.34,134.26,134.21,20.0]
[1718910289490,0.34,134.26,134.18,28.09]
[1718910289703,0.34,134.26,134.19,27.4518]
[1718910290423,0.34,134.26,134.2,7.4515]
[1718910291630,0.34,134.26,134.21,7.4509]
[1718910291799,0.34,134.26,134.2,7.4512]
[1718910292417,0.34,134.26,134.19,27.4519]
[1718910293623,0.34,134.26,134.2,7.4514]
[1718910293826,15.6211,134.27,134.21,7.4509]
[1718910294515,15.6211,134.27,134.2,7.4512]
[1718910295116,6.1125,134.29,134.21,50.64]
[1718910295323,6.1125,134.29,134.26,7.4479]
[1718910295711,6.1125,134.29,134.25,35.5385]
[1718910295912,6.1125,134.29,134.26,20.0]
[1718910296111,6.1125,134.29,134.27,1.48717999]
[1718910296929,21.896,134.32,134.27,1.48717999]
[1718910297220,21.896,134.32,134.27,8.93477999]
[1718910297422,21.896,134.32,134.28,2.32185648]
[1718910298217,21.896,134.32,134.28,5.64730858]
[1718910298400,21.896,134.32,134.27,7.4476]
[1718910298803,21.896,134.32,134.26,55.5379]
[1718910299499,21.896,134.32,134.27,7.4472]
[1718910300104,21.896,134.32,134.26,48.09]
[1718910300304,21.896,134.32,134.27,7.4471]
[1718910300524,21.896,134.32,134.26,55.5379]
[1718910300723,21.896,134.32,134.27,7.4475]
[1718910300922,21.896,134.32,134.26,48.09]
[1718910300923,21.896,134.32,134.28,7.447]
[1718910301224,21.896,134.32,134.27,7.4475]
[1718910301427,21.896,134.32,134.28,7.447]
[1718910301650,21.896,134.32,134.27,7.4474]
[1718910301927,21.896,134.32,134.26,55.5379]
[1718910303010,21.896,134.32,134.26,20.0]
[1718910303216,0.34,134.31,134.23,48.09]
[1718910303420,45.51,134.31,134.23,48.09]
[1718910303733,0.51,134.31,134.24,7.4493]
[1718910303936,0.51,134.31,134.25,27.4487]
[1718910304233,21.8741713,134.32,134.28,7.4467]
[1718910304540,21.8741713,134.32,134.29,48.09]
[1718910304740,6.1087,134.32,134.3,7.4456]
[1718910305033,6.3538,134.36,134.3,7.4456]
[1718910305229,6.3538,134.36,134.29,55.5364]
[1718910307326,21.8407,134.36,134.29,55.5364]
[1718910307625,22.1223,134.4,134.32,28.09]
[1718910307826,22.1223,134.4,134.33,20.0]
[1718910308025,22.1223,134.4,134.35,7.443]
[1718910308724,22.1223,134.4,134.35,35.533]
[1718910308908,22.1223,134.4,134.36,20.0]
[1718910309632,22.1223,134.4,134.36,27.4425]
[1718910310937,22.1223,134.4,134.36,20.0]
[1718910311319,22.1223,134.4,134.32,28.09]
[1718910311515,22.1223,134.4,134.35,7.4427]
[1718910312012,22.1223,134.4,134.36,7.4424]
[1718910312636,22.1223,134.4,134.37,7.4421]
[1718910312817,22.1223,134.4,134.36,7.4425]
[1718910313014,22.1223,134.4,134.37,20.0]
[1718910313715,22.1223,134.4,134.36,27.4426]
[1718910314321,22.1223,134.4,134.37,7.4418]
[1718910314711,22.1223,134.4,134.36,20.0]
[1718910314928,6.79568839,134.46,134.36,20.0]
[1718910314929,6.2753,134.44,134.36,20.0]
[1718910315106,6.2753,134.44,134.38,7.4412]
[1718910316721,6.2753,134.44,134.37,7.4419]
[1718910316920,6.2753,134.44,134.38,20.0]
[1718910317247,6.2753,134.44,134.3,22.55]
[1718910317248,16.0003,134.42,134.3,22.38]
[1718910317423,16.0003,134.42,134.26,16.02243957]
[1718910317424,16.0003,134.42,134.35,7.4428]
[1718910317616,0.34,134.41,134.35,7.4428]
[1718910317921,0.17,134.4,134.35,7.4428]
[1718910318715,16.0003,134.42,134.36,7.4425]
[1718910318933,16.0003,134.42,134.38,7.441]
[1718910321616,16.0003,134.42,134.39,20.0]
[1718910323444,6.2753,134.44,134.4,7.4401]
[1718910324834,6.2753,134.44,134.39,27.4407]
[1718910327143,6.2753,134.44,134.4,7.4401]
[1718910329455,6.2753,134.44,134.39,27.4407]
[1718910329632,6.2753,134.44,134.4,7.4404]
[1718910330038,6.2753,134.44,134.39,27.4407]
[1718910330644,6.2753,134.44,134.39,20.0]
[1718910330845,6.2753,134.44,134.41,7.4396]
[1718910332244,6.2753,134.44,134.42,7.4392]
[1718910332844,6.2753,134.44,134.43,7.4388]
[1718910333060,6.2753,134.44,134.42,7.4391]
[1718910335129,6.2753,134.44,134.41,7.4397]
[1718910335334,6.2753,134.44,134.42,20.0]
[1718910337046,15.7005,134.45,134.42,20.0]
[1718910337647,15.7005,134.45,134.39,20.0]
[1718910338346,0.17,134.44,134.39,20.0]
[1718910338542,0.34,134.44,134.39,20.0]
[1718910339255,15.7005,134.45,134.39,20.0]
[1718910339453,15.7005,134.45,134.42,9.32]
[1718910340043,30.0,134.44,134.42,9.32]
[1718910341059,30.0,134.44,134.39,20.0]
[1718910341270,30.0,134.44,134.43,16.7588]
[1718910341439,30.0,134.44,134.42,7.439]
[1718910341859,0.8304103,134.46,134.42,7.439]
[1718910344747,0.8304103,134.46,134.4,35.3801]
[1718910344970,0.8304103,134.46,134.41,20.0]
[1718910345273,0.8304103,134.46,134.41,27.4397]
[1718910345447,0.8304103,134.46,134.41,20.0]
[1718910346340,0.8304103,134.46,134.38,27.94]
[1718910346693,0.17,134.45,134.39,20.0]
[1718910347168,0.17,134.45,134.4,7.4401]
[1718910347562,0.8304103,134.46,134.4,7.4401]
[1718910348271,0.8304103,134.46,134.39,27.4408]
[1718910348487,0.17,134.45,134.39,27.4408]
[1718910349268,0.8304103,134.46,134.39,27.4408]
[1718910349569,0.17,134.45,134.39,27.4408]
[1718910350455,0.17,134.45,134.4,7.4403]
[1718910351543,0.17,134.45,134.39,27.4408]
[1718910352145,15.4384,134.44,134.37,27.94]
[1718910352346,30.17,134.43,134.36,7.4424]
[1718910352549,0.17,134.42,134.37,20.0]
[1718910352748,0.34,134.42,134.37,20.0]
[1718910353471,30.34,134.42,134.37,20.0]
[1718910353731,30.34,134.42,134.37,27.442]
[1718910354553,30.0,134.42,134.38,7.4413]
[1718910354774,30.0,134.42,134.37,20.0]
[1718910354955,30.0,134.42,134.4,7.4404]
[1718910355447,30.0,134.42,134.39,7.4408]
[1718910355822,30.0,134.42,134.4,7.4403]
[1718910355963,30.0,134.43,134.39,7.4407]
[1718910356445,30.0,134.43,134.39,7.4406]
[1718910358379,30.0,134.43,134.37,27.94]
[1718910358380,30.0,134.43,134.4,47.94]
[1718910358547,0.8304103,134.46,134.41,7.4397]
[1718910359050,0.8304103,134.46,134.4,55.3802]
[1718910360379,0.8304103,134.46,134.4,47.94]
[1718910360689,0.8304103,134.46,134.4,55.3801]
[1718910361722,0.8304103,134.46,134.4,55.3802]
[1718910361885,0.8304103,134.46,134.4,47.94]
[1718910362289,0.8304103,134.46,134.4,55.3801]
[1718910363586,0.8304103,134.46,134.44,9.31]
[1718910363965,0.8304103,134.46,134.43,9.31]
[1718910364485,0.17,134.45,134.42,9.31]
[1718910364668,0.34,134.45,134.42,9.31]
[1718910364870,0.34,134.45,134.34,281.68]
[1718910365088,15.1754,134.43,134.4,9.31]
[1718910365378,6.4791,134.42,134.33,52.3647]
[1718910365584,6.4791,134.42,134.39,9.31]
[1718910365794,6.4791,134.42,134.33,52.3647]
[1718910365977,6.4791,134.42,134.4,9.31]
[1718910372072,6.4791,134.42,134.36,7.4426]
[1718910372276,6.4791,134.42,134.4,9.31]
[1718910373288,30.0,134.41,134.4,9.31]
[1718910373491,30.34,134.41,134.39,9.31]
[1718910374771,30.34,134.41,134.4,9.31]
[1718910375182,30.51,134.41,134.4,9.31]
[1718910377685,30.51,134.41,134.39,9.31]